Workbook

Sheet 动态调整后明细表
A1: 萧县石林乡2022年巩固拓展脱贫攻坚成果和乡村振兴项目库
A2: 项目类别 | B2: 项目名称 | C2: 建设 性质 | D2: 主管部门 | E2: 实施单位和责任人 | F2: 项目实施地点 | I2: 建设任务（内容及规模） | J2: 时间进度 (完成时限） | K2: 预计投资 | L2: 其中： | Q2: 项目年度总目标 | R2: 绩效目标 | AB2: 群众参与 | AC2: 联农带农机制 | AD2: 备注
R3: 产出指标 | V3: 效益指标 | AA3: 满意度
L4: 财政 衔接资金 | M4: 其他 财政资金 | N4: 社会自筹资金 | O4: 行业部门及定点帮扶资金 | P4: 其他 资金 | V4: 经济效益 | Y4: 受益对象
F5: 乡镇 | G5: 行政村 | H5: 是否 出列村 | R5: 数量指标 | S5: 质量指标（验收合格率） | T5: 成本指标 | U5: 时效指标（完成及时率） | V5: 带动脱贫户经济总收入 | W5: 资产股权年收益率 | X5: 受益劳动者经济总收入 | Y5: 受益户数 | Z5: 受益人数
A6: 合计 | K6: =K7+K19+K31+K33+K35 -> 4095.43 | L6: =L7+L19+L31+L33+L35 -> 1261.43 | M6: =M7+M19+M31+M33+M35 -> 2834.00 | N6: =N7+N19+N31+N33+N35 -> 0.00 | O6: =O7+O19+O31+O33+O35 -> 0.00
A7: 一、产业发展项目 | K7: =K8+K12 -> 1903.3 | L7: 103.3 | M7: 1800 | N7: 0 | O7: 0 | P7: 0
A8: （一）特色产业发展 | K8: =L8+M8 -> 1800 | L8: =SUM(L9:L11) -> 0 | M8: =SUM(M9:M11) -> 1800 | N8: =SUM(N9:N11) -> 0 | O8: =SUM(O9:O11) -> 0 | P8: =SUM(P9:P11) -> 0
A9: 1 | B9: 石林乡石林村农产品仓储产业项目 | C9: 新建 | D9: 县农业农村局 | E9: 石林乡 杨超峰 | F9: 石林乡 | G9: 石林村 | H9: 是 | I9: 建设粮食储存仓库约1980平方米及相关地坪、配电、消防等设施 | J9: 2022年12月底前 | K9: =SUM(L9:P9) -> 600 | M9: 600 | Q9: 建设粮食储存仓库约1980平方米及相关地坪、配电、消防等设施 | R9: 脱贫人口加入合作社、村集体经济人数8人 | S9: 100% | T9: / | U9: 100% | V9: 36 | W9: 6% | X9: / | Y9: 98 | Z9: 196 | AA9: 95% | AB9: 项目申报、实施过程监督、带动产业发展 | AC9: 以提供就业岗位或产业分红的形式，增加脱贫人口收入，激发脱贫人口内生动力，同时增加村集体收入
A10: 2 | B10: 石林乡魏楼村特色产业发展项目 | C10: 新建 | D10: 县农业农村局 | E10: 石林乡 杨超峰 | F10: 石林乡 | G10: 魏楼村 | H10: 否 | I10: 建设钢构大棚及配套设施，养牛，占地面积约40亩 | J10: 2022年12月底前 | K10: =SUM(L10:P10) -> 600 | M10: 600 | Q10: 建设钢构大棚及配套设施，养牛，占地面积约40亩 | R10: 脱贫人口加入合作社、村集体经济人数10人 | S10: 100% | T10: / | U10: 100% | V10: 36 | W10: 6% | X10: / | Y10: 54 | Z10: 90 | AA10: 95% | AB10: 项目申报、实施过程监督、带动产业发展 | AC10: 以提供就业岗位或产业分红的形式，增加脱贫人口收入，激发脱贫人口内生动力，同时增加村集体收入
A11: 3 | B11: 石林乡崔阁村特色产业发展项目 | C11: 新建 | D11: 县农业农村局 | E11: 石林乡 杨超峰 | F11: 石林乡 | G11: 崔阁村 | H11: 否 | I11: 构建甜玉米加工厂房及配套设施（清洗设备、包装设备、消毒设备），占地约3亩 | J11: 2022年12月底前 | K11: =SUM(L11:P11) -> 600 | M11: 600 | Q11: 构建甜玉米加工厂房及配套设施（清洗设备、包装设备、消毒设备），占地约3亩 | R11: 脱贫人口加入合作社、村集体经济人数15人 | S11: 100% | T11: / | U11: 100% | V11: 36 | W11: 6% | X11: / | Y11: 15 | Z11: 35 | AA11: 95% | AB11: 项目申报、实施过程监督、带动产业发展 | AC11: 以提供就业岗位或产业分红的形式，增加脱贫户收入，激发脱贫户内生动力，同时增加村集体收入
A12: （二）特色种养业奖补到户 | K12: =L12+M12 -> 103.3 | L12: =SUM(L13:L18) -> 103.3 | M12: =SUM(M13:M18) -> 0 | N12: =SUM(N13:N18) -> 0 | O12: =SUM(O13:O18) -> 0 | P12: =SUM(P13:P18) -> 0
A13: 4 | B13: 石林乡陶楼村自种自养项目 | C13: 新建 | D13: 县农业农村局 | E13: 石林乡 杨超峰 | F13: 石林乡 | G13: 陶楼村 | H13: 是 | I13: 特色种养直补到户62户 | J13: 2022年12月底前 | K13: =SUM(L13:P13) -> 17 | L13: 17 | Q13: 特色种养业直补到户62户 | R13: 羊养殖数量272只，鸡养殖数量600只，猪6头，蔬菜种植6亩 | S13: 种植成活率95%，养殖成活率90% | T13: / | U13: 100% | V13: 20.4 | W13: / | X13: / | Y13: 62 | Z13: 160 | AA13: 95% | AB13: 参与项目申报、实施过程监督、完成后受益 | AC13: 以产业补助的形式对脱贫人口进行补助，鼓励发展特色产业，激发脱贫人口内生动力，增加脱贫户收入
A14: 5 | B14: 石林乡朱大楼村自种自养项目 | C14: 新建 | D14: 县农业农村局 | E14: 石林乡 杨超峰 | F14: 石林乡 | G14: 朱大楼村 | H14: 否 | I14: 特色种养直补到户50户 | J14: 2022年12月底前 | K14: 11 | L14: 11 | Q14: 特色种养业直补到户50户 | R14: 羊养殖300只、猪养殖40只 | S14: 养殖成活率90% | T14: / | U14: 100% | V14: 13.2 | W14: / | X14: / | Y14: 50 | Z14: 82 | AA14: 95% | AB14: 参与项目申报、实施过程监督、完成后受益 | AC14: 以产业补助的形式对脱贫人口进行补助，鼓励发展特色产业，激发脱贫人口内生动力，增加脱贫户收入
A15: 6 | B15: 石林乡李庄村自种自养项目 | C15: 新建 | D15: 县农业农村局 | E15: 石林乡 杨超峰 | F15: 石林乡 | G15: 李庄村 | H15: 是 | I15: 特色种养业直补到户70户 | J15: 2022年12月底前 | K15: 21 | L15: 21 | Q15: 特色种养业直补到户70户 | R15: 羊养殖420只 | S15: 养殖成活率90% | T15: / | U15: 100% | V15: 25.2 | W15: / | X15: / | Y15: 70 | Z15: 171 | AA15: 95% | AB15: 参与项目申报、实施过程监督、完成后受益 | AC15: 以产业补助的形式对脱贫人口进行补助，鼓励发展特色产业，激发脱贫人口内生动力，增加脱贫户收入
A16: 7 | B16: 石林乡石林村自种自养项目 | C16: 新建 | D16: 县农业农村局 | E16: 石林乡 杨超峰 | F16: 石林乡 | G16: 石林村 | H16: 是 | I16: 特色种养业直补到户42户 | J16: 2022年12月底前 | K16: 12.3 | L16: 12.3 | Q16: 特色种养业直补到户42户 | R16: 羊养殖数量162只，猪养殖数量18只，蔬菜种植6亩。 | S16: 种植成活率95%，养殖成活率90% | T16: / | U16: 100% | V16: 14.76 | W16: / | X16: / | Y16: 42 | Z16: 96 | AA16: 95% | AB16: 参与项目申报、实施过程监督、完成后受益 | AC16: 以产业补助的形式对脱贫人口进行补助，鼓励发展特色产业，激发脱贫人口内生动力，增加脱贫户收入
A17: 8 | B17: 石林乡崔阁村自种自养项目 | C17: 新建 | D17: 县农业农村局 | E17: 石林乡 杨超峰 | F17: 石林乡 | G17: 崔阁村 | H17: 否 | I17: 特色种养直补到户90户 | J17: 2022年12月底前 | K17: 27 | L17: 27 | Q17: 特色种养业直补到户90户 | R17: 猪养殖数量20头，羊养殖数量210只。 | S17: 养殖成活率90% | T17: / | U17: 100% | V17: 32.4 | W17: / | X17: / | Y17: 90 | Z17: 143 | AA17: 95% | AB17: 参与项目申报、实施过程监督、完成后受益 | AC17: 以产业补助的形式对脱贫人口进行补助，鼓励发展特色产业，激发脱贫人口内生动力，增加脱贫户收入
A18: 9 | B18: 石林乡魏楼村自种自养项目 | C18: 新建 | D18: 县农业农村局 | E18: 石林乡 杨超峰 | F18: 石林乡 | G18: 魏楼村 | H18: 否 | I18: 特色种养业直补到户52户 | J18: 2022年12月底前 | K18: 15 | L18: 15 | Q18: 特色种养业直补到户52户 | R18: 养羊240只、养牛18只、种植桃树20亩 | S18: 种植成活率95%，养殖成活率90% | T18: / | U18: 100% | V18: 18 | W18: / | X18: / | Y18: 52 | Z18: 110 | AA18: 95% | AB18: 参与项目申报、实施过程监督、完成后受益 | AC18: 以产业补助的形式对脱贫人口进行补助，鼓励发展特色产业，激发脱贫人口内生动力，增加脱贫户收入
A19: 二、基础设施建设 | K19: =K20+K22+K24 -> 1944 | L19: 910 | M19: 1034 | N19: 0 | O19: 0 | P19: 0
A20: （一）“进村入户”道路 | K20: =L20+M20 -> 1500 | L20: =SUM(L21:L21) -> 500 | M20: =SUM(M21:M21) -> 1000 | N20: =SUM(N21:N21) -> 0 | O20: =SUM(O21:O21) -> 0 | P20: =SUM(P21:P21) -> 0
A21: 10 | B21: 石林乡“进村入户”道路商砼、石子采购项目 | C21: 改建 | D21: 县交通运输局 | E21: 石林乡 杨超峰 | F21: 石林乡 | G21: 石林、崔阁、陶楼、李庄、朱大楼、魏楼村 | H21: / | I21: 采购商砼约25800立方米、石子约8700方用于进村入户道路改建 | J21: 2022年12月底前 | K21: =SUM(L21:P21) -> 1500 | L21: 500 | M21: 1000 | Q21: 建设道路长不少于34.3公里，改善脱贫人口生产生活设施条件，提升村内基础设施水 | R21: 采购商砼约25800立方米、石子约8700方用于进村入户道路改建 | S21: 100% | T21: / | U21: / | V21: / | W21: / | X21: / | Y21: 1834 | Z21: 4491 | AA21: 95% | AB21: 项目申报、实施过程务工和监督、竣工后受益 | AC21: 以道路建设的形式，改善村内基础设施条件，提升脱贫人口出行水平
A22: （二）农村污水处理设施建设 | K22: =SUM(L22:P22) -> 410 | L22: =SUM(L23:L23) -> 410 | M22: =SUM(M23:M23) -> 0 | N22: =SUM(N23:N36) -> 0 | O22: =SUM(O23:O36) -> 0 | P22: =SUM(P23:P36) -> 0
A23: 11 | B23: 石林乡崔阁村万庄自然村污水处理设施建设项目 | C23: 新建 | D23: 县农业农村局 | E23: 石林乡 杨超峰 | F23: 石林乡 | G23: 崔阁村 | H23: 否 | I23: 万庄村污水管网4500米、接户管网8400米、道路建设10010平方及相关配套设施 | J23: 2022年12月底前 | K23: =SUM(L23:P23) -> 410 | L23: 410 | N23: / | O23: / | P23: / | Q23: 新建污水管网4500米、接户管网8400米、道路建设10010平方及相关配套设施，改善农户生产生活设施条件，提升村内基础设施水平 | R23: 万庄村污水管网4500米、接户管网8400米、道路建设10010平方及相关配套设施 | S23: 100% | V23: / | W23: / | X23: / | Y23: 260 | Z23: 1150 | AA23: 95% | AB23: 项目申报、实施过程监督、竣工后项目所在地受益 | AC23: 改善村内基础设施条件，提升脱贫人口生活设施水平
A24: （三）农村公益事业奖补 | K24: =L24+M24+N24+O24+P24 -> 34 | L24: =SUM(L25:L30) -> 0 | M24: =SUM(M25:M30) -> 34 | N24: =SUM(N25:N30) -> 0 | O24: =SUM(O25:O30) -> 0 | P24: =SUM(P25:P30) -> 0
A25: 12 | B25: 石林乡崔阁村安全防护项目 | C25: 新建 | D25: 县财政局 | E25: 石林乡 杨超峰 | F25: 石林乡 | G25: 崔阁村 | H25: 否 | I25: 新建防溺水监控23个 | J25: 2022年12月底前 | K25: =L25+M25+N25+O25+P25 -> 7.10917 | M25: 7.10917 | Q25: 新建防溺水监控23个 | R25: 新建防溺水监控23个 | S25: 100% | T25: 100% | U25: / | V25: / | W25: / | X25: / | Y25: 451 | Z25: 1239 | AA25: 95% | AB25: 参与项目申报、实施过程监督和建成后受益 | AC25: 通过财政资金投入，改建农村生产生活设施条件，提升群众满意度
A26: 13 | B26: 石林乡李庄村安全防护项目 | C26: 新建 | D26: 县财政局 | E26: 石林乡 杨超峰 | F26: 石林乡 | G26: 李庄村 | H26: 是 | I26: 新建防溺水监控18个 | J26: 2022年12月底前 | K26: 5.56362 | M26: 5.56362 | Q26: 新建防溺水监控18个 | R26: 新建防溺水监控18个 | S26: 100% | T26: 100% | U26: / | V26: / | W26: / | X26: / | Y26: 273 | Z26: 648 | AA26: 95% | AB26: 参与项目申报、实施过程监督和建成后受益 | AC26: 通过财政资金投入，改建农村生产生活设施条件，提升群众满意度
A27: 14 | B27: 石林乡石林村安全防护项目 | C27: 新建 | D27: 县财政局 | E27: 石林乡 杨超峰 | F27: 石林乡 | G27: 石林村 | H27: 是 | I27: 新建防溺水监控18个 | J27: 2022年12月底前 | K27: 5.56362 | M27: 5.56362 | Q27: 新建防溺水监控18个 | R27: 新建防溺水监控18个 | S27: 100% | T27: 100% | U27: / | V27: / | W27: / | X27: / | Y27: 308 | Z27: 658 | AA27: 95% | AB27: 参与项目申报、实施过程监督和建成后受益 | AC27: 通过财政资金投入，改建农村生产生活设施条件，提升群众满意度
A28: 15 | B28: 石林乡陶楼村安全防护项目 | C28: 新建 | D28: 县财政局 | E28: 石林乡 杨超峰 | F28: 石林乡 | G28: 陶楼村 | H28: 是 | I28: 新建防溺水监控18个 | J28: 2022年12月底前 | K28: 5.56362 | M28: 5.56362 | Q28: 新建防溺水监控18个 | R28: 新建防溺水监控18个 | S28: 100% | T28: 100% | U28: / | V28: / | W28: / | X28: / | Y28: 264 | Z28: 633 | AA28: 95% | AB28: 参与项目申报、实施过程监督和建成后受益 | AC28: 通过财政资金投入，改建农村生产生活设施条件，提升群众满意度
A29: 16 | B29: 石林乡魏楼村安全防护项目 | C29: 新建 | D29: 县财政局 | E29: 石林乡 杨超峰 | F29: 石林乡 | G29: 魏楼村 | H29: 否 | I29: 新建防溺水监控18个 | J29: 2022年12月底前 | K29: 5.56362 | M29: 5.56362 | Q29: 新建防溺水监控18个 | R29: 新建防溺水监控18个 | S29: 100% | T29: 100% | U29: / | V29: / | W29: / | X29: / | Y29: 264 | Z29: 633 | AA29: 95% | AB29: 参与项目申报、实施过程监督和建成后受益 | AC29: 通过财政资金投入，改建农村生产生活设施条件，提升群众满意度
A30: 17 | B30: 石林乡朱大楼村安全防护项目 | C30: 新建 | D30: 县财政局 | E30: 石林乡 杨超峰 | F30: 石林乡 | G30: 朱大楼村 | H30: 否 | I30: 新建防溺水监控15个 | J30: 2022年12月底前 | K30: 4.63635 | M30: 4.63635 | Q30: 新建防溺水监控15个 | R30: 新建防溺水监控15个 | S30: 100% | T30: 100% | U30: / | V30: / | W30: / | X30: / | Y30: 276 | Z30: 726 | AA30: 95% | AB30: 参与项目申报、实施过程监督和建成后受益 | AC30: 通过财政资金投入，改建农村生产生活设施条件，提升群众满意度
A31: 三、教育帮扶 | K31: =SUM(L31:P31) -> 24.6 | L31: =L32 -> 24.6 | M31: 0 | N31: 0 | O31: 0 | P31: 0
A32: 18 | B32: 雨露计划 | C32: 新建 | D32: 县教体局 | E32: 县教体局杜尚训 | F32: 石林乡 | G32: / | H32: / | I32: 中职、高职助学资助 | J32: 2022年12月底前 | K32: 24.6 | L32: 24.6 | Q32: 完成约82名脱贫家庭中职高职学生资助 | R32: 资助原建档立卡脱贫户子女82人 | S32: 100% | T32: 1500元/人 | U32: / | V32: / | W32: / | X32: / | Y32: / | Z32: 82 | AA32: 100% | AB32: 项目申报、实施过程监督，原建档立卡脱贫家庭子女直接受益。 | AC32: 以教育补贴的形式减轻原建档立卡脱贫家庭教育支出负担。
A33: 四、就业项目 | K33: 200.58 | L33: 200.58 | N33: =N34 -> 0 | O33: 0 | P33: 0
A34: 19 | B34: 公益岗位项目 | C34: 新建 | D34: 县人社局 | E34: 县人社局吴伟 | F34: 石林乡 | G34: / | H34: / | I34: 开发保洁、保安、河道巡护员、环境监督员、村部保洁员和扶贫互助岗等基层基础辅助性公益岗位299个 | J34: 2022年12月底前 | K34: 200.58 | L34: 200.58 | Q34: 计划2022年底前保持基层基础辅助性公益岗位299个 | R34: 享受公益性岗位补贴人次数≥299人 | S34: 求职创业补贴发放准确率≥100%; | T34: 7200元 | U34: / | V34: 发放公益性岗位补贴金额200.58万元 | W34: / | X34: / | Y34: / | Z34: 299 | AA34: 100% | AB34: 项目申报、实施过程监督、务工带动增收 | AC34: 以提供就业岗位的形式，人均年增收7200元以上。增加脱贫户收入发同时，有效激发脱贫户内生动力
A35: 五、金融项目 | K35: 22.95 | L35: 22.95 | M35: =M36 -> 0 | N35: 0 | O35: 0 | P35: 0
A36: 20 | B36: 小额信贷贴息资金 | C36: 新建 | D36: 县财政局 | E36: 财政局 刘学东 | F36: 石林乡 | G36: / | H36: / | I36: 小额信贷贴息22.95万元 | J36: 2022年12月底前 | K36: 22.95 | L36: 22.95 | Q36: 为小额信贷用户以4.75%的利率贴息 | R36: 贴息资金22.95万元 | S36: 贴息率4.75% | T36: / | U36: 100% | V36: / | W36: / | X36: / | Y36: 200 | Z36: / | AA36: 100% | AB36: 项目申报、实施过程监督、带动产业发展 | AC36: 以贴息的方式减少小额信贷用户的资金使用负担
